[Event "Titled Tuesday Blitz July 26 Early 2022"]
[White "Wagner, Dennis"]
[Black "Hakobyan, Aram"]
[WhiteFideId "24650684"]
[BlackFideId "13306677"]
[WhiteElo "2355"]
[BlackElo "2557"]
[Result "1-0"]
[Round "07"]
[TimeControl "180+1"]
[Date "2022.07.26"]
[WhiteClock "0:00:23"]
[BlackClock "0:00:31"]

1. e4 {[%clk 0:03:00]}  c6 {[%clk 0:02:59]} 2. d4 {[%clk 0:03:00]}  g6 {[%clk 0:03:00]} 3. Nd2 {[%clk 0:03:00]}  Bg7 {[%clk 0:03:01]} 4. Ngf3 {[%clk 0:02:59]}  d6 {[%clk 0:03:01]} 5. Bd3 {[%clk 0:02:58]}  Nf6 {[%clk 0:03:01]} 6. O-O {[%clk 0:02:58]}  O-O {[%clk 0:03:01]} 7. c3 {[%clk 0:02:59]}  Nbd7 {[%clk 0:03:01]} 8. Re1 {[%clk 0:02:59]}  e5 {[%clk 0:03:00]} 9. a4 {[%clk 0:02:58]}  Re8 {[%clk 0:03:00]} 10. a5 {[%clk 0:02:54]}  Qc7 {[%clk 0:03:00]} 11. h3 {[%clk 0:02:49]}  Nf8 {[%clk 0:02:59]} 12. dxe5 {[%clk 0:02:40]}  dxe5 {[%clk 0:02:59]} 13. Nc4 {[%clk 0:02:40]}  Nh5 {[%clk 0:02:59]} 14. b4 {[%clk 0:02:38]}  Ne6 {[%clk 0:02:58]} 15. Bf1 {[%clk 0:02:33]}  Nef4 {[%clk 0:02:58]} 16. Qd6 {[%clk 0:02:08]}  Qxd6 {[%clk 0:02:54]} 17. Nxd6 {[%clk 0:02:09]}  Rd8 {[%clk 0:02:54]} 18. Nxc8 {[%clk 0:02:08]}  Raxc8 {[%clk 0:02:55]} 19. Be3 {[%clk 0:02:08]}  a6 {[%clk 0:02:49]} 20. Red1 {[%clk 0:02:08]}  Ne6 {[%clk 0:02:45]} 21. Bb6 {[%clk 0:02:04]}  Rxd1 {[%clk 0:02:44]} 22. Rxd1 {[%clk 0:02:05]}  Nf6 {[%clk 0:02:41]} 23. Bc4 {[%clk 0:01:21]}  Nxe4 {[%clk 0:02:25]} 24. Rd7 {[%clk 0:01:18]}  Nxc3 {[%clk 0:02:23]} 25. Rxb7 {[%clk 0:01:16]}  e4 {[%clk 0:02:21]} 26. Nd2 {[%clk 0:01:07]}  Nb5 {[%clk 0:01:51]} 27. Bxe6 {[%clk 0:01:00]}  fxe6 {[%clk 0:01:51]} 28. Nxe4 {[%clk 0:01:00]}  Rf8 {[%clk 0:01:30]} 29. Nc5 {[%clk 0:01:00]}  Be5 {[%clk 0:01:18]} 30. Nxa6 {[%clk 0:00:54]}  Rf4 {[%clk 0:01:19]} 31. g3 {[%clk 0:00:53]}  Rc4 {[%clk 0:01:19]} 32. Bc5 {[%clk 0:00:51]}  Nc3 {[%clk 0:01:11]} 33. Nb8 {[%clk 0:00:48]}  Ne4 {[%clk 0:01:01]} 34. Nd7 {[%clk 0:00:47]}  Nxc5 {[%clk 0:00:51]} 35. Nxc5 {[%clk 0:00:44]}  Rc1+ {[%clk 0:00:37]} 36. Kg2 {[%clk 0:00:43]}  Ra1 {[%clk 0:00:38]} 37. a6 {[%clk 0:00:42]}  Bd4 {[%clk 0:00:33]} 38. a7 {[%clk 0:00:42]}  Ra2 {[%clk 0:00:32]} 39. Kf3 {[%clk 0:00:32]}  e5 {[%clk 0:00:29]} 40. Rb8+ {[%clk 0:00:24]}  Kg7 {[%clk 0:00:30]} 41. a8=Q {[%clk 0:00:25]}  Rxf2+ {[%clk 0:00:30]} 42. Ke4 {[%clk 0:00:25]}  Re2+ {[%clk 0:00:31]} 43. Kd3 {[%clk 0:00:25]}  Re3+ {[%clk 0:00:32]} 44. Kd2 {[%clk 0:00:25]}  Rf3 {[%clk 0:00:31]} 45. Qxc6 {[%clk 0:00:24]}  Rf2+ {[%clk 0:00:30]} 46. Kd3 {[%clk 0:00:24]}  Rf6 {[%clk 0:00:30]} 47. Rb7+ {[%clk 0:00:24]}  Kh6 {[%clk 0:00:30]} 48. Qxf6 {[%clk 0:00:23]}  e4+ {[%clk 0:00:31]} 49. Kxd4 {[%clk 0:00:23]} 1-0


[Site "https://www.chess.com"]

[Event "Titled Tuesday Blitz July 26 Early 2022"]
[White "Yeremyan, Alen"]
[Black "Bilan, Danila"]
[WhiteFideId "13308998"]
[BlackFideId "24161918"]
[WhiteElo "2158"]
[BlackElo "2164"]
[Result "1-0"]
[Round "07"]
[TimeControl "180+1"]
[Date "2022.07.27"]
[WhiteClock "0:00:57"]
[BlackClock "0:00:03"]

1. e4 {[%clk 0:02:59]}  c6 {[%clk 0:03:00]} 2. Nc3 {[%clk 0:02:59]}  d5 {[%clk 0:03:00]} 3. Qe2 {[%clk 0:02:59]}  d4 {[%clk 0:02:58]} 4. Nd1 {[%clk 0:02:59]}  e5 {[%clk 0:02:58]} 5. d3 {[%clk 0:03:00]}  g6 {[%clk 0:02:58]} 6. g3 {[%clk 0:03:01]}  Bg7 {[%clk 0:02:58]} 7. f4 {[%clk 0:03:01]}  Nf6 {[%clk 0:02:50]} 8. Nf3 {[%clk 0:02:59]}  Nbd7 {[%clk 0:02:50]} 9. Bg2 {[%clk 0:02:55]}  c5 {[%clk 0:02:37]} 10. O-O {[%clk 0:02:55]}  O-O {[%clk 0:02:36]} 11. f5 {[%clk 0:02:53]}  b5 {[%clk 0:02:31]} 12. h3 {[%clk 0:02:51]}  gxf5 {[%clk 0:02:23]} 13. exf5 {[%clk 0:02:50]}  Bb7 {[%clk 0:02:16]} 14. Ng5 {[%clk 0:02:50]}  Bxg2 {[%clk 0:02:13]} 15. Qxg2 {[%clk 0:02:51]}  Nb6 {[%clk 0:02:09]} 16. Nf2 {[%clk 0:02:51]}  Nbd5 {[%clk 0:02:04]} 17. Nfe4 {[%clk 0:02:50]}  c4 {[%clk 0:01:57]} 18. Kh1 {[%clk 0:02:47]}  Rc8 {[%clk 0:01:55]} 19. g4 {[%clk 0:02:41]}  cxd3 {[%clk 0:01:49]} 20. cxd3 {[%clk 0:02:41]}  h6 {[%clk 0:01:44]} 21. Nxf6+ {[%clk 0:02:38]}  Nxf6 {[%clk 0:01:38]} 22. Ne4 {[%clk 0:02:29]}  Nxe4 {[%clk 0:01:26]} 23. Qxe4 {[%clk 0:02:29]}  Qh4 {[%clk 0:01:13]} 24. Qg2 {[%clk 0:02:23]}  Bf6 {[%clk 0:01:07]} 25. Bd2 {[%clk 0:02:05]}  Kh8 {[%clk 0:00:25]} 26. Rac1 {[%clk 0:02:02]}  Rg8 {[%clk 0:00:19]} 27. Rxc8 {[%clk 0:01:45]}  Rxc8 {[%clk 0:00:19]} 28. b3 {[%clk 0:01:42]}  Kh7 {[%clk 0:00:11]} 29. a4 {[%clk 0:01:40]}  bxa4 {[%clk 0:00:10]} 30. bxa4 {[%clk 0:01:41]}  Rg8 {[%clk 0:00:07]} 31. Rg1 {[%clk 0:01:38]}  Be7 {[%clk 0:00:05]} 32. Kh2 {[%clk 0:01:32]}  Qf6 {[%clk 0:00:05]} 33. Qe4 {[%clk 0:01:31]}  Rc8 {[%clk 0:00:04]} 34. g5 {[%clk 0:01:29]}  hxg5 {[%clk 0:00:04]} 35. Rxg5 {[%clk 0:01:21]}  Rc2 {[%clk 0:00:04]} 36. Rh5+ {[%clk 0:01:07]}  Kg8 {[%clk 0:00:03]} 37. Qa8+ {[%clk 0:01:01]}  Bf8 {[%clk 0:00:02]} 38. Qg2+ {[%clk 0:01:00]}  Qg7 {[%clk 0:00:03]} 39. Rg5 {[%clk 0:01:00]}  f6 {[%clk 0:00:01]} 40. Rxg7+ {[%clk 0:00:56]}  Bxg7 {[%clk 0:00:02]} 41. Kg1 {[%clk 0:00:56]}  Kh7 {[%clk 0:00:01]} 42. Qg6+ {[%clk 0:00:56]}  Kg8 {[%clk 0:00:02]} 43. Bh6 {[%clk 0:00:56]}  Rc7 {[%clk 0:00:02]} 44. Kf1 {[%clk 0:00:56]}  Kf8 {[%clk 0:00:02]} 45. Bxg7+ {[%clk 0:00:57]}  Rxg7 {[%clk 0:00:03]} 46. Qxf6+ {[%clk 0:00:57]} 1-0


[Site "https://www.chess.com"]

[Event "Titled Tuesday Blitz July 26 Early 2022"]
[White "Zemlyanskii, Ivan"]
[Black "Raja Harshit"]
[WhiteFideId "24249971"]
[BlackFideId "5089000"]
[WhiteElo "1815"]
[BlackElo "2338"]
[Result "0-1"]
[Round "07"]
[TimeControl "180+1"]
[Date "2022.07.26"]
[WhiteClock "0:00:23"]
[BlackClock "0:00:36"]

1. d4 {[%clk 0:03:00]}  Nf6 {[%clk 0:03:00]} 2. c4 {[%clk 0:03:01]}  g6 {[%clk 0:03:00]} 3. h4 {[%clk 0:03:00]}  Nc6 {[%clk 0:02:59]} 4. Nc3 {[%clk 0:02:58]}  d6 {[%clk 0:02:58]} 5. Nf3 {[%clk 0:02:54]}  Bg7 {[%clk 0:02:58]} 6. e4 {[%clk 0:02:54]}  O-O {[%clk 0:02:57]} 7. d5 {[%clk 0:02:53]}  Nb4 {[%clk 0:02:56]} 8. Be2 {[%clk 0:02:50]}  Na6 {[%clk 0:02:52]} 9. Nd4 {[%clk 0:02:42]}  Nc5 {[%clk 0:02:52]} 10. Bf3 {[%clk 0:02:35]}  e5 {[%clk 0:02:51]} 11. Nc2 {[%clk 0:02:30]}  a5 {[%clk 0:02:50]} 12. Bg5 {[%clk 0:02:30]}  Qe8 {[%clk 0:02:49]} 13. h5 {[%clk 0:02:24]}  Ncd7 {[%clk 0:02:09]} 14. hxg6 {[%clk 0:02:20]}  fxg6 {[%clk 0:02:09]} 15. Qd2 {[%clk 0:02:18]}  h5 {[%clk 0:02:09]} 16. O-O-O {[%clk 0:02:07]}  Qf7 {[%clk 0:02:09]} 17. Ne3 {[%clk 0:02:02]}  Nc5 {[%clk 0:02:09]} 18. Rdg1 {[%clk 0:01:44]}  Nh7 {[%clk 0:02:01]} 19. Bh4 {[%clk 0:01:44]}  g5 {[%clk 0:01:49]} 20. Bg3 {[%clk 0:01:41]}  g4 {[%clk 0:01:49]} 21. Be2 {[%clk 0:01:40]}  Ng5 {[%clk 0:01:42]} 22. Qc2 {[%clk 0:01:39]}  Qg6 {[%clk 0:01:28]} 23. f3 {[%clk 0:01:33]}  Rf4 {[%clk 0:01:24]} 24. Bxf4 {[%clk 0:01:23]}  exf4 {[%clk 0:01:24]} 25. Nf5 {[%clk 0:01:24]}  Bxf5 {[%clk 0:01:15]} 26. exf5 {[%clk 0:01:25]}  Qf6 {[%clk 0:01:15]} 27. fxg4 {[%clk 0:01:21]}  hxg4 {[%clk 0:01:15]} 28. Bxg4 {[%clk 0:01:19]}  a4 {[%clk 0:01:16]} 29. a3 {[%clk 0:01:07]}  Qd4 {[%clk 0:01:09]} 30. f6 {[%clk 0:00:59]}  Qxf6 {[%clk 0:00:56]} 31. Be6+ {[%clk 0:00:59]}  Ncxe6 {[%clk 0:00:44]} 32. dxe6 {[%clk 0:01:00]}  Qxe6 {[%clk 0:00:45]} 33. Nd5 {[%clk 0:00:55]}  c6 {[%clk 0:00:45]} 34. Nb6 {[%clk 0:00:43]}  Qe3+ {[%clk 0:00:41]} 35. Kb1 {[%clk 0:00:41]}  Qxb6 {[%clk 0:00:42]} 36. Rd1 {[%clk 0:00:34]}  Ne4 {[%clk 0:00:39]} 37. Ka1 {[%clk 0:00:32]}  Qb3 {[%clk 0:00:37]} 38. Qd3 {[%clk 0:00:23]}  Qxb2# {[%clk 0:00:36]} 0-1


[Site "https://www.chess.com"]

[Event "Titled Tuesday Blitz July 26 Early 2022"]
[White "Al-Tarboush, Ward"]
[Black "Buscar, Michael"]
[WhiteFideId "7601450"]
[BlackFideId "2603616"]
[WhiteElo "2231"]
[BlackElo "2010"]
[Result "1-0"]
[Round "08"]
[TimeControl "180+1"]
[Date "2022.07.27"]
[WhiteClock "0:00:13"]
[BlackClock "0:00:01"]

1. e4 {[%clk 0:03:00]}  c6 {[%clk 0:02:55]} 2. Nf3 {[%clk 0:03:00]}  d6 {[%clk 0:02:54]} 3. Nc3 {[%clk 0:03:01]}  e5 {[%clk 0:02:53]} 4. d4 {[%clk 0:03:02]}  Nd7 {[%clk 0:02:53]} 5. Bc4 {[%clk 0:02:56]}  Be7 {[%clk 0:02:50]} 6. O-O {[%clk 0:02:31]}  Ngf6 {[%clk 0:02:48]} 7. Re1 {[%clk 0:02:29]}  O-O {[%clk 0:02:48]} 8. a4 {[%clk 0:02:25]}  a5 {[%clk 0:02:42]} 9. Bg5 {[%clk 0:02:15]}  Qc7 {[%clk 0:02:42]} 10. Qd2 {[%clk 0:02:08]}  Re8 {[%clk 0:02:35]} 11. Rad1 {[%clk 0:02:07]}  Nf8 {[%clk 0:02:35]} 12. h3 {[%clk 0:02:03]}  Be6 {[%clk 0:02:34]} 13. d5 {[%clk 0:02:00]}  Bd7 {[%clk 0:02:35]} 14. Ba2 {[%clk 0:01:58]}  c5 {[%clk 0:02:30]} 15. Qe2 {[%clk 0:01:50]}  Ng6 {[%clk 0:02:28]} 16. Nb5 {[%clk 0:01:48]}  Qb6 {[%clk 0:02:15]} 17. Bc4 {[%clk 0:01:48]}  h6 {[%clk 0:01:57]} 18. Bxf6 {[%clk 0:01:40]}  Bxf6 {[%clk 0:01:43]} 19. Nh2 {[%clk 0:01:36]}  Nf4 {[%clk 0:01:41]} 20. Qf3 {[%clk 0:01:34]}  Be7 {[%clk 0:01:40]} 21. Ng4 {[%clk 0:01:29]}  Rf8 {[%clk 0:01:34]} 22. Ne3 {[%clk 0:01:26]}  Qd8 {[%clk 0:01:21]} 23. Nf5 {[%clk 0:01:23]}  Bxb5 {[%clk 0:01:09]} 24. Bxb5 {[%clk 0:01:22]}  Kh7 {[%clk 0:01:00]} 25. Kh2 {[%clk 0:01:21]}  g6 {[%clk 0:01:00]} 26. Ne3 {[%clk 0:01:22]}  Nh5 {[%clk 0:00:50]} 27. g3 {[%clk 0:01:19]}  Bg5 {[%clk 0:00:50]} 28. Nc4 {[%clk 0:01:19]}  Ng7 {[%clk 0:00:47]} 29. h4 {[%clk 0:01:15]}  Be7 {[%clk 0:00:47]} 30. Ne3 {[%clk 0:01:16]}  f5 {[%clk 0:00:43]} 31. exf5 {[%clk 0:01:17]}  gxf5 {[%clk 0:00:43]} 32. Nxf5 {[%clk 0:01:17]}  Nxf5 {[%clk 0:00:41]} 33. Bd3 {[%clk 0:01:18]}  Qd7 {[%clk 0:00:32]} 34. g4 {[%clk 0:01:17]}  Bxh4 {[%clk 0:00:28]} 35. Bxf5+ {[%clk 0:01:17]}  Rxf5 {[%clk 0:00:28]} 36. Qxf5+ {[%clk 0:01:18]}  Qxf5 {[%clk 0:00:28]} 37. gxf5 {[%clk 0:01:19]}  Bxf2 {[%clk 0:00:24]} 38. Re2 {[%clk 0:01:18]}  Bh4 {[%clk 0:00:23]} 39. Re4 {[%clk 0:01:18]}  Bg5 {[%clk 0:00:22]} 40. c3 {[%clk 0:01:14]}  Kg7 {[%clk 0:00:22]} 41. Ra1 {[%clk 0:01:07]}  Kf6 {[%clk 0:00:21]} 42. b4 {[%clk 0:01:05]}  axb4 {[%clk 0:00:20]} 43. cxb4 {[%clk 0:01:04]}  Kxf5 {[%clk 0:00:20]} 44. Rc4 {[%clk 0:01:05]}  b5 {[%clk 0:00:16]} 45. Rc2 {[%clk 0:01:01]}  Bf4+ {[%clk 0:00:13]} 46. Kh3 {[%clk 0:00:59]}  bxa4 {[%clk 0:00:04]} 47. bxc5 {[%clk 0:00:59]}  dxc5 {[%clk 0:00:04]} 48. Rxc5 {[%clk 0:00:59]}  a3 {[%clk 0:00:03]} 49. Rc7 {[%clk 0:00:57]}  e4 {[%clk 0:00:02]} 50. Rf7+ {[%clk 0:00:51]}  Ke5 {[%clk 0:00:01]} 51. d6 {[%clk 0:00:51]}  Bg5 {[%clk 0:00:01]} 52. d7 {[%clk 0:00:49]}  Ke6 {[%clk 0:00:02]} 53. Rg7 {[%clk 0:00:42]}  a2 {[%clk 0:00:01]} 54. Kg4 {[%clk 0:00:13]}  Bf6 {[%clk 0:00:01]} 55. Rg6 {[%clk 0:00:13]} 1-0


[Site "https://www.chess.com"]

[Event "Titled Tuesday Blitz July 26 Early 2022"]
[White "Ambartsumova, Karina"]
[Black "Vifleemskaia, Svetlana"]
[WhiteFideId "4166299"]
[BlackFideId "4129490"]
[WhiteElo "2262"]
[BlackElo "1929"]
[Result "1-0"]
[Round "08"]
[TimeControl "180+1"]
[Date "2022.07.27"]
[WhiteClock "0:00:07"]
[BlackClock "0:00:06"]

1. Nf3 {[%clk 0:03:00]}  Nf6 {[%clk 0:02:58]} 2. g3 {[%clk 0:03:00]}  b5 {[%clk 0:02:58]} 3. Bg2 {[%clk 0:02:59]}  Bb7 {[%clk 0:02:59]} 4. O-O {[%clk 0:02:59]}  e6 {[%clk 0:02:59]} 5. a4 {[%clk 0:02:56]}  b4 {[%clk 0:02:57]} 6. d4 {[%clk 0:02:56]}  a5 {[%clk 0:02:56]} 7. c4 {[%clk 0:02:56]}  d6 {[%clk 0:02:55]} 8. b3 {[%clk 0:02:51]}  Be7 {[%clk 0:02:54]} 9. Bb2 {[%clk 0:02:51]}  O-O {[%clk 0:02:54]} 10. Nbd2 {[%clk 0:02:51]}  c5 {[%clk 0:02:47]} 11. e3 {[%clk 0:02:44]}  Nbd7 {[%clk 0:02:35]} 12. Qe2 {[%clk 0:02:43]}  Ne4 {[%clk 0:02:18]} 13. Rac1 {[%clk 0:02:27]}  Qc7 {[%clk 0:02:13]} 14. Rfd1 {[%clk 0:02:16]}  f5 {[%clk 0:02:12]} 15. Nxe4 {[%clk 0:01:43]}  Bxe4 {[%clk 0:02:11]} 16. Ne1 {[%clk 0:01:32]}  Bxg2 {[%clk 0:02:06]} 17. Nxg2 {[%clk 0:01:33]}  Nf6 {[%clk 0:02:00]} 18. Nf4 {[%clk 0:01:29]}  Qc8 {[%clk 0:01:54]} 19. d5 {[%clk 0:01:24]}  e5 {[%clk 0:01:50]} 20. Ne6 {[%clk 0:01:24]}  Rf7 {[%clk 0:01:47]} 21. Qd3 {[%clk 0:01:21]}  Ne4 {[%clk 0:01:40]} 22. h4 {[%clk 0:01:12]}  g6 {[%clk 0:01:34]} 23. Kg2 {[%clk 0:01:11]}  h6 {[%clk 0:01:25]} 24. f3 {[%clk 0:01:05]}  Nf6 {[%clk 0:01:24]} 25. h5 {[%clk 0:00:41]}  e4 {[%clk 0:01:20]} 26. fxe4 {[%clk 0:00:33]}  fxe4 {[%clk 0:01:19]} 27. Qe2 {[%clk 0:00:33]}  Nxh5 {[%clk 0:01:00]} 28. Qg4 {[%clk 0:00:33]}  Kh7 {[%clk 0:00:54]} 29. Rf1 {[%clk 0:00:30]}  Bf6 {[%clk 0:00:48]} 30. Qxe4 {[%clk 0:00:21]}  Qg8 {[%clk 0:00:38]} 31. Bxf6 {[%clk 0:00:19]}  Nxf6 {[%clk 0:00:26]} 32. Qh4 {[%clk 0:00:18]}  g5 {[%clk 0:00:19]} 33. Qh3 {[%clk 0:00:18]}  Re8 {[%clk 0:00:16]} 34. Qf5+ {[%clk 0:00:15]}  Qg6 {[%clk 0:00:16]} 35. e4 {[%clk 0:00:09]}  Ree7 {[%clk 0:00:16]} 36. Rf2 {[%clk 0:00:09]}  Nxe4 {[%clk 0:00:15]} 37. Nf8+ {[%clk 0:00:07]}  Rxf8 {[%clk 0:00:13]} 38. Qxg6+ {[%clk 0:00:07]}  Kxg6 {[%clk 0:00:13]} 39. Rxf8 {[%clk 0:00:08]}  Nc3 {[%clk 0:00:13]} 40. Rcf1 {[%clk 0:00:08]}  Re2+ {[%clk 0:00:13]} 41. R1f2 {[%clk 0:00:08]}  Re3 {[%clk 0:00:10]} 42. R8f6+ {[%clk 0:00:08]}  Kh5 {[%clk 0:00:10]} 43. Kh3 {[%clk 0:00:07]}  g4+ {[%clk 0:00:09]} 44. Kg2 {[%clk 0:00:07]}  Ne4 {[%clk 0:00:08]} 45. R2f5+ {[%clk 0:00:08]}  Ng5 {[%clk 0:00:08]} 46. Rxd6 {[%clk 0:00:08]}  Rxb3 {[%clk 0:00:08]} 47. Rff6 {[%clk 0:00:07]}  Ne4 {[%clk 0:00:06]} 48. Rxh6+ {[%clk 0:00:07]}  Kg5 {[%clk 0:00:06]} 49. Rdg6+ {[%clk 0:00:08]}  Kf5 {[%clk 0:00:07]} 50. d6 {[%clk 0:00:08]}  Ke5 {[%clk 0:00:07]} 51. Re6+ {[%clk 0:00:08]}  Kd4 {[%clk 0:00:06]} 52. d7 {[%clk 0:00:07]}  Ke3 {[%clk 0:00:06]} 53. Rxe4+ {[%clk 0:00:07]} 1-0


[Site "https://www.chess.com"]

[Event "Titled Tuesday Blitz July 26 Early 2022"]
[White "Derjabin, Ilja"]
[Black "Maksimenko, Viktor"]
[WhiteFideId "14104768"]
[BlackFideId "13710478"]
[WhiteElo "2341"]
[BlackElo "2269"]
[Result "1-0"]
[Round "08"]
[TimeControl "180+1"]
[Date "2022.07.27"]
[WhiteClock "0:00:08"]
[BlackClock "0:00:03"]

1. d4 {[%clk 0:02:44]}  Nf6 {[%clk 0:02:59]} 2. c4 {[%clk 0:02:42]}  e6 {[%clk 0:02:59]} 3. Nc3 {[%clk 0:02:40]}  Bb4 {[%clk 0:02:59]} 4. a3 {[%clk 0:02:39]}  Bxc3+ {[%clk 0:02:59]} 5. bxc3 {[%clk 0:02:38]}  O-O {[%clk 0:02:59]} 6. f3 {[%clk 0:02:36]}  Ne8 {[%clk 0:03:00]} 7. e4 {[%clk 0:02:35]}  c5 {[%clk 0:02:59]} 8. Bd3 {[%clk 0:02:34]}  Nc6 {[%clk 0:02:58]} 9. Ne2 {[%clk 0:02:34]}  b6 {[%clk 0:02:58]} 10. O-O {[%clk 0:02:33]}  Ba6 {[%clk 0:02:57]} 11. e5 {[%clk 0:02:20]}  Na5 {[%clk 0:02:54]} 12. f4 {[%clk 0:02:19]}  f5 {[%clk 0:02:45]} 13. g4 {[%clk 0:02:10]}  Bxc4 {[%clk 0:02:43]} 14. Bxc4 {[%clk 0:02:06]}  Nxc4 {[%clk 0:02:44]} 15. gxf5 {[%clk 0:02:07]}  Rxf5 {[%clk 0:02:42]} 16. Ng3 {[%clk 0:02:06]}  Rf7 {[%clk 0:02:32]} 17. Ra2 {[%clk 0:02:04]}  g6 {[%clk 0:02:30]} 18. Ne4 {[%clk 0:01:57]}  d5 {[%clk 0:02:27]} 19. Ng5 {[%clk 0:01:53]}  Re7 {[%clk 0:02:27]} 20. Qg4 {[%clk 0:01:47]}  Ng7 {[%clk 0:02:26]} 21. Rg2 {[%clk 0:01:45]}  Qf8 {[%clk 0:02:23]} 22. Nxh7 {[%clk 0:01:39]}  Kxh7 {[%clk 0:02:12]} 23. Qxg6+ {[%clk 0:01:38]}  Kg8 {[%clk 0:02:03]} 24. f5 {[%clk 0:01:38]}  exf5 {[%clk 0:02:01]} 25. Bh6 {[%clk 0:01:26]}  Qf7 {[%clk 0:01:50]} 26. Qc6 {[%clk 0:01:24]}  Qe6 {[%clk 0:01:11]} 27. Qxa8+ {[%clk 0:01:03]}  Kh7 {[%clk 0:01:11]} 28. Qf8 {[%clk 0:00:45]}  Qxh6 {[%clk 0:00:48]} 29. Qxe7 {[%clk 0:00:42]}  Ne3 {[%clk 0:00:49]} 30. Rxg7+ {[%clk 0:00:32]}  Qxg7+ {[%clk 0:00:50]} 31. Qxg7+ {[%clk 0:00:32]}  Kxg7 {[%clk 0:00:50]} 32. Rf3 {[%clk 0:00:33]}  cxd4 {[%clk 0:00:49]} 33. cxd4 {[%clk 0:00:34]}  Nc2 {[%clk 0:00:49]} 34. Rd3 {[%clk 0:00:28]}  b5 {[%clk 0:00:46]} 35. Kf2 {[%clk 0:00:28]}  a5 {[%clk 0:00:47]} 36. Ke2 {[%clk 0:00:25]}  f4 {[%clk 0:00:43]} 37. Kf3 {[%clk 0:00:22]}  b4 {[%clk 0:00:43]} 38. axb4 {[%clk 0:00:22]}  Ne1+ {[%clk 0:00:43]} 39. Ke2 {[%clk 0:00:17]}  Nxd3 {[%clk 0:00:43]} 40. bxa5 {[%clk 0:00:14]}  Nb4 {[%clk 0:00:42]} 41. Kf3 {[%clk 0:00:15]}  Nc6 {[%clk 0:00:35]} 42. Kxf4 {[%clk 0:00:13]}  Nxd4 {[%clk 0:00:35]} 43. a6 {[%clk 0:00:13]}  Nc6 {[%clk 0:00:34]} 44. Kf5 {[%clk 0:00:12]}  Kf7 {[%clk 0:00:30]} 45. h4 {[%clk 0:00:11]}  Ke7 {[%clk 0:00:18]} 46. h5 {[%clk 0:00:11]}  Kf7 {[%clk 0:00:18]} 47. h6 {[%clk 0:00:11]}  d4 {[%clk 0:00:15]} 48. Ke4 {[%clk 0:00:11]}  Kg6 {[%clk 0:00:16]} 49. e6 {[%clk 0:00:09]}  d3 {[%clk 0:00:12]} 50. Ke3 {[%clk 0:00:09]}  Kxh6 {[%clk 0:00:07]} 51. a7 {[%clk 0:00:08]}  d2 {[%clk 0:00:05]} 52. Kxd2 {[%clk 0:00:08]}  Nxa7 {[%clk 0:00:04]} 53. e7 {[%clk 0:00:08]}  Nc6 {[%clk 0:00:02]} 54. e8=Q {[%clk 0:00:07]}  Nd4 {[%clk 0:00:03]} 55. Qh8+ {[%clk 0:00:07]}  Kg6 {[%clk 0:00:03]} 56. Qxd4 {[%clk 0:00:08]} 1-0


[Site "https://www.chess.com"]

[Event "Titled Tuesday Blitz July 26 Early 2022"]
[White "Dubov, Daniil"]
[Black "Aravindh, Chithambaram VR."]
[WhiteFideId "24126055"]
[BlackFideId "5072786"]
[WhiteElo "2791"]
[BlackElo "2577"]
[Result "1-0"]
[Round "08"]
[TimeControl "180+1"]
[Date "2022.07.26"]
[WhiteClock "0:01:31"]
[BlackClock "0:00:01"]

1. Nf3 {[%clk 0:03:00]}  g6 {[%clk 0:02:58]} 2. e4 {[%clk 0:03:00]}  Bg7 {[%clk 0:02:57]} 3. d4 {[%clk 0:03:00]}  d6 {[%clk 0:02:58]} 4. Nc3 {[%clk 0:03:00]}  Nf6 {[%clk 0:02:58]} 5. Be2 {[%clk 0:03:01]}  O-O {[%clk 0:02:58]} 6. O-O {[%clk 0:03:02]}  Nc6 {[%clk 0:02:58]} 7. Be3 {[%clk 0:02:54]}  Bg4 {[%clk 0:02:49]} 8. h3 {[%clk 0:02:53]}  Bxf3 {[%clk 0:02:48]} 9. Bxf3 {[%clk 0:02:54]}  e5 {[%clk 0:02:48]} 10. dxe5 {[%clk 0:02:54]}  dxe5 {[%clk 0:02:46]} 11. Be2 {[%clk 0:02:54]}  Nd4 {[%clk 0:02:45]} 12. Bc4 {[%clk 0:02:54]}  c6 {[%clk 0:02:42]} 13. a4 {[%clk 0:02:53]}  a6 {[%clk 0:02:24]} 14. a5 {[%clk 0:02:49]}  Qc7 {[%clk 0:02:02]} 15. Re1 {[%clk 0:02:42]}  Rad8 {[%clk 0:02:00]} 16. Qc1 {[%clk 0:02:37]}  Rd7 {[%clk 0:01:51]} 17. Na4 {[%clk 0:02:32]}  Nxe4 {[%clk 0:01:41]} 18. c3 {[%clk 0:02:27]}  c5 {[%clk 0:01:18]} 19. Nb6 {[%clk 0:02:18]}  Nf5 {[%clk 0:00:45]} 20. Nxd7 {[%clk 0:02:16]}  Qxd7 {[%clk 0:00:46]} 21. Qc2 {[%clk 0:02:15]}  Nxe3 {[%clk 0:00:42]} 22. Qxe4 {[%clk 0:02:07]}  Nxc4 {[%clk 0:00:40]} 23. Qxc4 {[%clk 0:02:07]}  Qc7 {[%clk 0:00:39]} 24. Red1 {[%clk 0:02:05]}  h5 {[%clk 0:00:38]} 25. Rd5 {[%clk 0:01:53]}  Rc8 {[%clk 0:00:16]} 26. Rad1 {[%clk 0:01:51]}  Qc6 {[%clk 0:00:03]} 27. Rd6 {[%clk 0:01:47]}  Qe8 {[%clk 0:00:02]} 28. Qd5 {[%clk 0:01:39]}  e4 {[%clk 0:00:01]} 29. Qxb7 {[%clk 0:01:33]}  e3 {[%clk 0:00:01]} 30. Qxc8 {[%clk 0:01:31]}  Qxc8 {[%clk 0:00:01]} 31. Rd8+ {[%clk 0:01:31]} 1-0


[Site "https://www.chess.com"]